bitfinex-derivatives/quotes_SOLF0:USTF0_20241005
["timestamp","ask_amount","ask_price","bid_price","bid_amount"]
[1728145840983,10.74,142.71,142.7,4.84]
[1728145841185,10.74,142.71,142.68,4.84]
[1728145841370,10.74,142.71,142.67,77.04122]
[1728145841371,14.2435,142.71,142.67,4.94532]
[1728145841570,10.74,142.68,142.67,0.12502]
[1728145841878,4.84,142.75,142.67,6.15342355]
[1728145842179,4.84,142.75,142.67,0.12502]
[1728145842180,10.74,142.68,142.67,0.12502]
[1728145843687,1.3771,142.71,142.67,0.12502]
[1728145843875,10.74,142.69,142.67,3.62922]
[1728145844281,1.3107,142.74,142.68,4.84]
[1728145844482,10.74,142.72,142.69,3.5037]
[1728145845886,14.2432,142.72,142.69,3.5037]
[1728145846688,10.74,142.71,142.69,3.5037]
[1728145847873,10.74,142.7,142.67,0.12502]
[1728145848075,10.74,142.69,142.67,4.96502]
[1728145848486,10.74,142.69,142.67,0.12502]
[1728145848876,3.5041,142.68,142.67,0.12502]
[1728145852373,4.1874,142.68,142.67,0.12502]
[1728145852988,0.6833,142.68,142.67,0.12502]
[1728145858087,4.1874,142.68,142.67,0.12502]
[1728145859483,0.6833,142.68,142.67,0.12502]
[1728145859790,11.4233,142.68,142.67,0.12502]
[1728145860178,14.9274,142.68,142.67,0.12502]
[1728145861191,3.5048,142.66,142.61,2.89982]
[1728145861491,10.74,142.64,142.61,4.96502]
[1728145861889,10.74,142.65,142.61,4.96502]
[1728145862083,10.74,142.66,142.61,4.96502]
[1728145862280,0.6833,142.68,142.67,3.5044]
[1728145867798,10.74,142.69,142.67,3.5044]
[1728145871801,10.74,142.7,142.68,3.5041]
[1728145872502,10.74,142.7,142.69,3.5039]
[1728145873193,3.62802,142.73,142.68,10.74]
[1728145873398,10.74,142.72,142.7,3.5036]
[1728145879016,10.74,142.71,142.7,3.5036]
[1728145879406,10.74,142.71,142.69,3.5038]
[1728145880010,14.2435,142.71,142.68,3.504]
[1728145880703,10.74,142.7,142.67,4.84]
[1728145880900,14.2437,142.7,142.67,8.3443]
[1728145881309,10.74,142.68,142.67,8.3443]
[1728145882104,10.74,142.68,142.67,3.5043]
[1728145882411,10.74,142.68,142.65,3.5048]
[1728145882613,10.74,142.67,142.65,8.3448]
[1728145883611,10.74,142.67,142.65,3.5048]
[1728145884314,10.74,142.67,142.63,4.84]
[1728145884508,14.2445,142.67,142.64,3.505]
[1728145884709,10.74,142.68,142.63,4.84]
[1728145885416,10.74,142.68,142.66,3.5045]
[1728145886311,3.5039,142.69,142.66,3.5045]
[1728145886523,10.74,142.68,142.66,3.5045]
[1728145886823,3.5039,142.69,142.66,3.5045]
[1728145887018,10.74,142.69,142.64,10.74]
[1728145888110,10.74,142.69,142.67,3.5042]
[1728145891223,10.74,142.69,142.66,4.84]
[1728145891419,10.74,142.71,142.66,15.58]
[1728145892625,14.2434,142.71,142.66,15.58]
[1728145892925,14.2434,142.71,142.68,3.504]
[1728145893527,10.74,142.7,142.68,3.504]
[1728145893723,10.74,142.7,142.67,3.5042]
[1728145895823,10.74,142.7,142.68,3.5041]
[1728145898120,10.74,142.71,142.69,3.5039]
[1728145898726,10.74,142.71,142.7,3.5035]
[1728145900634,0.12502,142.73,142.72,3.5031]
[1728145900832,0.12502,142.73,142.72,8.3431]
[1728145901030,10.74,142.78,142.72,15.58]
[1728145901338,10.86502,142.79,142.74,10.74]
[1728145901528,10.86502,142.79,142.75,4.84]
[1728145902428,10.86502,142.79,142.76,3.5021]
[1728145902928,10.74,142.78,142.76,3.5021]
[1728145903134,10.74,142.77,142.75,4.84]
[1728145903332,10.74,142.76,142.75,4.84]
[1728145904432,3.5019,142.78,142.75,4.84]
[1728145904433,10.74,142.77,142.75,4.84]
[1728145905235,10.74,142.78,142.76,3.5021]
[1728145907237,10.74,142.78,142.75,8.3423]
[1728145909434,14.2417,142.78,142.75,8.3423]
[1728145912339,0.12502,142.79,142.75,4.84]
[1728145912537,10.74,142.78,142.76,3.502]
[1728145913134,10.74,142.78,142.77,3.5019]
[1728145913435,0.12502,142.79,142.75,15.58]
[1728145914836,10.86502,142.79,142.75,4.84]
[1728145915143,10.74,142.76,142.75,4.84]
[1728145916936,10.74,142.76,142.73,8.3428]
[1728145917241,10.74,142.75,142.73,8.3429]
[1728145919042,10.74,142.76,142.73,4.84]
[1728145919239,10.74,142.76,142.74,3.5026]
[1728145921750,14.2424,142.75,142.72,3.5031]
[1728145922043,14.2424,142.75,142.73,4.84]
[1728145922434,10.74,142.75,142.73,4.84]
[1728145924248,10.74,142.75,142.69,12.0768]
[1728145924444,10.74,142.75,142.7,4.84]
[1728145925546,10.74,142.75,142.72,3.5029]
[1728145926145,10.74,142.75,142.7,4.84]
[1728145928451,10.74,142.75,142.72,3.5029]
[1728145929353,10.74,142.75,142.7,4.84]
[1728145929555,10.74,142.75,142.73,3.5029]
[1728145931059,10.74,142.74,142.71,4.84]
[1728145931566,10.74,142.74,142.72,3.5031]
[1728145932955,10.74,142.74,142.71,4.84]
[1728145933452,10.74,142.72,142.7,4.84]
[1728145933655,10.74,142.71,142.7,4.84]
[1728145933858,10.74,142.71,142.68,4.84]
[1728145934060,10.74,142.71,142.68,8.344]
[1728145934560,10.74,142.71,142.69,3.5038]
[1728145935353,10.74,142.71,142.68,4.84]
[1728145935556,10.74,142.73,142.68,15.58]
[1728145935757,10.74,142.73,142.68,10.74]
[1728145935956,10.74,142.73,142.71,3.5032]
[1728145936557,14.243,142.73,142.7,3.5035]
[1728145936860,10.74,142.72,142.7,3.5035]
[1728145937052,10.74,142.72,142.69,8.3437]
[1728145937448,10.74,142.72,142.69,4.84]
[1728145937660,10.74,142.72,142.7,3.5036]
[1728145937959,10.74,142.72,142.69,4.84]
[1728145939164,14.2431,142.72,142.69,8.3437]
[1728145939363,10.74,142.7,142.67,4.96502]
[1728145939561,10.74,142.69,142.67,4.96502]
[1728145939959,10.74,142.69,142.67,0.12502]
[1728145940158,10.74,142.68,142.67,0.12502]
[1728145940361,14.2441,142.68,142.67,0.12502]
[1728145942059,3.53450087,142.71,142.67,0.12502]
[1728145942060,14.244,142.69,142.67,0.12502]
[1728145947862,10.74,142.68,142.67,0.12502]
[1728145952579,14.2441,142.68,142.67,0.12502]
[1728145952769,10.74,142.68,142.61,0.12502]
[1728145953068,10.74,142.64,142.61,0.12502]
[1728145953274,10.74,142.64,142.61,4.96502]
[1728145953662,10.74,142.64,142.63,3.5053]
[1728145953873,10.74,142.64,142.61,4.96502]
[1728145954376,10.74,142.64,142.62,3.5054]
[1728145958483,11.4233,142.64,142.62,3.5054]
[1728145961472,11.4233,142.64,142.63,1.18891473]
[1728145962676,0.6833,142.64,142.63,4.69421473]
[1728145963782,3.49457169,142.72,142.63,4.69421473]
[1728145963783,10.74,142.69,142.67,3.5042]
[1728145964085,10.74,142.69,142.66,4.84]
[1728145964579,0.12502,142.73,142.66,15.58]
[1728145964779,0.12502,142.73,142.68,10.74]
[1728145964780,10.86502,142.73,142.68,10.74]
[1728145964988,0.12502,142.73,142.69,4.84]
[1728145965190,0.12502,142.73,142.71,3.5032]
[1728145966283,0.12502,142.73,142.69,4.84]
[1728145966284,10.74,142.72,142.69,8.3438]
[1728145967289,14.36812,142.73,142.69,8.3438]
[1728145967787,10.86502,142.73,142.7,3.5036]
[1728145968589,0.12502,142.73,142.71,3.5032]
[1728145979091,0.12502,142.73,142.72,3.5031]
[1728145980996,0.12502,142.73,142.69,4.84]
[1728145981298,0.12502,142.73,142.71,3.5033]
[1728145982498,0.12502,142.73,142.7,3.5035]
[1728145982796,0.12502,142.73,142.68,10.74]
[1728145982989,10.74,142.72,142.69,4.84]
[1728145983199,10.74,142.72,142.68,4.84]
[1728145985096,10.74,142.72,142.69,3.5037]
[1728145985991,14.2431,142.72,142.69,3.5037]
[1728145986999,10.74,142.72,142.69,3.5037]
[1728145989300,10.74,142.71,142.68,4.84]
[1728145989707,10.74,142.71,142.66,12.1496]
[1728145989897,3.5038,142.7,142.67,4.84]
[1728145990701,10.74,142.69,142.67,4.84]
[1728145990902,10.74,142.69,142.65,1.4219]
[1728145991203,10.74,142.68,142.65,8.3448]
[1728145993708,10.74,142.67,142.64,4.84]
[1728145994106,14.2442,142.68,142.64,8.3449]
[1728145994305,10.74,142.68,142.64,8.3449]
[1728145995100,14.2442,142.68,142.64,8.3449]
[1728145995612,10.74,142.68,142.64,4.84]
[1728145995814,3.5045,142.67,142.64,4.84]
[1728145996008,10.74,142.68,142.64,4.84]
[1728145996709,10.74,142.71,142.65,10.74]
[1728145996918,14.2435,142.71,142.68,3.5041]
[1728145997108,10.74,142.71,142.67,15.58]
[1728145997307,10.86502,142.73,142.67,15.58]
[1728145997812,10.74,142.71,142.68,3.5041]
[1728145999515,10.74,142.71,142.67,15.58]
[1728145999712,10.74,142.71,142.69,3.5039]
[1728146000315,10.74,142.71,142.68,3.504]
[1728146000706,14.2434,142.71,142.68,3.504]
[1728146000906,10.74,142.7,142.67,8.3442]
[1728146003616,10.74,142.68,142.65,9.6582]
[1728146003808,10.74,142.69,142.65,6.1534]
[1728146004621,10.74,142.69,142.66,4.84]
[1728146005419,10.74,142.69,142.66,8.3444]
[1728146006817,14.2439,142.69,142.66,8.3444]
[1728146007017,3.52984174,142.72,142.66,8.3444]
[1728146007018,10.74,142.68,142.66,4.84]
[1728146007216,10.74,142.67,142.65,3.5048]
[1728146007422,14.17667465,142.67,142.61,97.05873389]
[1728146007623,10.74,142.62,142.61,100.56453389]
[1728146007928,10.74,142.62,142.61,3.63082]
[1728146008111,14.2456,142.62,142.61,0.12502]
[1728146008624,10.74,142.62,142.61,0.12502]
[1728146011812,10.74,142.63,142.61,0.12502]
[1728146015827,10.74,142.62,142.61,0.12502]
[1728146019222,10.74,142.62,142.61,3.63082]
[1728146022227,1.3351,142.67,142.61,0.12502]
[1728146022418,10.74,142.64,142.61,0.12502]
[1728146022826,10.74,142.66,142.61,0.12502]
[1728146023025,10.74,142.66,142.61,12.21182]
[1728146023332,10.74,142.69,142.68,3.5039]
[1728146024027,10.74,142.7,142.69,3.5039]
[1728146024223,70.09707915,142.71,142.66,4.84]
[1728146024621,70.09707915,142.71,142.67,3.5042]
[1728146024824,11.4233,142.71,142.66,4.84]
[1728146025022,10.74,142.7,142.66,4.84]
[1728146025222,10.74,142.7,142.68,3.5039]
[1728146028928,10.74,142.7,142.66,8.3445]
[1728146029336,3.5034,142.71,142.66,8.3445]
[1728146029337,10.74,142.68,142.66,8.3445]
[1728146029537,10.74,142.68,142.67,3.5044]
[1728146032349,10.74,142.68,142.66,8.3445]
[1728146034443,10.74,142.68,142.63,12.1777]
[1728146034646,10.74,142.68,142.64,8.3451]
[1728146034953,10.74,142.68,142.65,4.84]
[1728146035135,10.74,142.68,142.64,3.5051]
[1728146035339,14.2444,142.67,142.63,3.5052]
[1728146035648,10.74,142.67,142.64,4.84]
[1728146036045,10.74,142.67,142.64,8.3449]
[1728146037043,10.74,142.67,142.64,3.5049]
[1728146037948,10.74,142.65,142.64,3.5049]
[1728146039850,10.74,142.65,142.63,8.3453]
[1728146040244,10.74,142.65,142.63,4.84]
[1728146040857,10.74,142.64,142.63,4.84]
[1728146043055,10.74,142.64,142.62,3.5055]
[1728146043257,10.74,142.64,142.63,3.5053]
[1728146043551,4.84,142.7,142.61,101.89871138]
[1728146043851,10.74,142.66,142.65,3.5049]
[1728146044751,81.4951,142.64,142.62,10.74]
[1728146045255,81.4951,142.64,142.63,3.5053]
[1728146046052,81.4951,142.64,142.63,14.2453]
[1728146046252,77.1427,142.64,142.63,14.2453]
[1728146046653,62.48159996,142.64,142.63,14.2453]
[1728146055566,62.48159996,142.64,142.63,3.5053]
[1728146061875,62.48159996,142.64,142.61,15.70502]
[1728146061876,62.48159996,142.64,142.62,3.5055]
[1728146062065,62.48159996,142.64,142.63,4.84]
[1728146065071,63.16489996,142.64,142.62,3.5054]
[1728146065276,73.90489996,142.64,142.61,0.12502]
[1728146065477,73.90489996,142.64,142.61,4.96502]
[1728146065670,73.90489996,142.64,142.61,8.47072]
[1728146065869,73.90489996,142.64,142.61,3.63072]
[1728146066272,10.74,142.62,142.61,0.12502]
[1728146066968,73.90489996,142.64,142.61,0.12502]
[1728146067871,73.90489996,142.64,142.61,3.63082]
[1728146068173,73.90489996,142.64,142.61,0.12502]
[1728146068477,73.90489996,142.64,142.61,4.96502]
[1728146068774,63.16489996,142.64,142.61,4.96502]
[1728146069073,63.16489996,142.64,142.63,3.5053]
[1728146069776,63.16489996,142.64,142.63,14.2453]
[1728146072567,63.16489996,142.64,142.63,3.5053]
[1728146072771,63.16489996,142.64,142.63,14.2453]
[1728146080496,62.48159996,142.64,142.63,14.2453]
[1728146087693,62.48159996,142.64,142.63,19.0853]
[1728146094306,30.95477616,142.64,142.63,19.0853]
[1728146105218,30.95477616,142.64,142.63,20.27430193]
[1728146105917,30.95477616,142.64,142.63,19.0853]
[1728146109513,30.95477616,142.64,142.63,20.27431024]
[1728146109816,1.3277,142.7,142.69,3.5039]
[1728146110022,10.74,142.74,142.69,4.84]
[1728146110404,10.74,142.74,142.7,3.5036]
[1728146111918,10.74,142.74,142.71,3.5033]
[1728146112922,10.74,142.74,142.72,3.5031]
[1728146115324,14.2422,142.76,142.72,8.3431]
[1728146115911,14.36792,142.73,142.7,3.5036]
[1728146116112,10.74,142.71,142.64,1.3278]
[1728146116321,3.45625831,142.72,142.65,4.84]
[1728146116322,10.74,142.69,142.65,4.84]
[1728146116512,10.74,142.69,142.66,3.5046]
[1728146117017,10.74,142.69,142.65,4.84]
[1728146117522,10.74,142.68,142.65,4.84]
[1728146119014,10.74,142.68,142.65,8.3448]
[1728146120712,11.4233,142.68,142.65,8.3448]
[1728146121117,11.4233,142.68,142.61,0.12502]
[1728146121118,10.74,142.66,142.61,0.12502]
[1728146121324,10.74,142.62,142.61,0.12502]
[1728146121514,10.74,142.63,142.61,0.12502]
[1728146122426,10.74,142.62,142.61,0.12502]
[1728146124021,10.74,142.63,142.61,0.12502]
[1728146125522,10.74,142.63,142.61,3.63082]
[1728146125818,10.74,142.63,142.61,0.12502]
[1728146126217,10.74,142.62,142.61,0.12502]
[1728146131225,1.4282,142.64,142.63,3.5053]
[1728146133423,13.5477,142.67,142.61,15.70502]
[1728146133731,13.5477,142.67,142.62,10.74]
[1728146134134,13.5477,142.67,142.65,3.5046]
[1728146134525,10.74,142.66,142.65,3.5046]
[1728146134736,10.74,142.66,142.64,3.5051]
[1728146134941,10.74,142.66,142.63,4.84]
[1728146135326,10.74,142.66,142.65,3.5049]
[1728146139330,2.8077,142.67,142.63,4.84]
[1728146139533,2.8077,142.67,142.66,3.5046]
[1728146139733,13.5477,142.67,142.66,3.5046]
[1728146140132,12.1282,142.67,142.66,3.5046]
[1728146140334,10.74,142.67,142.66,3.5046]
[1728146140533,10.74,142.68,142.67,3.5043]
[1728146144333,10.74,142.7,142.67,3.5043]
[1728146144741,10.74,142.7,142.68,3.5041]
[1728146145638,10.74,142.69,142.66,4.84]
[1728146147028,10.74,142.69,142.66,8.3446]
[1728146151843,10.74,142.69,142.66,3.5046]
[1728146153343,14.244,142.69,142.65,3.5048]
[1728146153645,10.74,142.66,142.64,4.84]
[1728146153834,10.74,142.66,142.61,10.86502]
[1728146154041,10.74,142.66,142.62,4.84]
[1728146154539,10.74,142.66,142.64,3.505]
[1728146156949,14.2448,142.66,142.62,8.3454]
[1728146157243,10.74,142.66,142.62,4.84]
[1728146157450,10.74,142.66,142.63,3.5051]
[1728146157744,10.74,142.66,142.62,4.84]
[1728146159049,10.74,142.66,142.63,3.5052]
[1728146159253,4.84,142.7,142.62,15.58]
[1728146159453,10.74,142.68,142.65,3.5047]
[1728146160643,10.74,142.68,142.66,3.5045]
[1728146163646,10.74,142.67,142.62,4.84]
[1728146163847,10.74,142.67,142.64,3.505]
[1728146164558,10.74,142.67,142.62,4.84]
[1728146164559,10.74,142.65,142.63,3.5052]
[1728146164855,10.74,142.65,142.61,4.96502]
[1728146165154,10.74,142.63,142.61,4.96502]
[1728146165351,10.74,142.63,142.61,3.63062]
[1728146165661,10.74,142.63,142.61,0.12502]
[1728146166152,14.2455,142.63,142.61,0.12502]
[1728146166546,3.5056,142.62,142.58,3.5064]
[1728146166744,10.74,142.6,142.58,3.5064]
[1728146170662,10.74,142.6,142.56,4.84]
[1728146170866,10.74,142.58,142.56,4.84]
[1728146171162,10.74,142.58,142.57,3.5068]
[1728146172258,10.74,142.58,142.49,11.2137194]
[1728146172458,10.74,142.51,142.49,0.12502]
[1728146173651,10.74,142.5,142.49,0.12502]
[1728146174967,10.74,142.51,142.49,0.12502]
[1728146175264,10.74,142.51,142.49,7.13402]
[1728146175964,10.74,142.5,142.49,7.13402]
[1728146178270,10.74,142.5,142.49,0.12502]
[1728146178967,10.74,142.51,142.49,0.12502]
[1728146179670,4.84,142.54,142.5,10.74]
[1728146179864,10.74,142.55,142.5,10.74]
[1728146180162,10.74,142.55,142.49,0.12502]
[1728146180163,10.74,142.54,142.49,10.86502]
[1728146180768,10.74,142.54,142.5,3.5085]
[1728146181366,10.74,142.53,142.49,3.63372]
[1728146181570,10.74,142.51,142.49,0.12502]
[1728146183461,10.74,142.5,142.49,0.12502]
[1728146183668,14.2485,142.5,142.49,0.12502]
[1728146186467,10.74,142.5,142.44,0.12518]
[1728146186669,10.74,142.46,142.44,0.12518]
[1728146190479,3.5093,142.47,142.44,0.12518]
[1728146190678,10.74,142.46,142.44,0.12518]
[1728146193574,10.74,142.45,142.44,0.12518]
[1728146194197,14.2498,142.45,142.44,0.12518]
[1728146194382,19.2098,142.45,142.44,0.12518]
[1728146196482,14.2498,142.45,142.44,0.12518]
[1728146196686,19.2298,142.45,142.44,0.12518]
[1728146198880,15.72,142.45,142.43,0.12502]
[1728146199084,10.74,142.44,142.37,0.12502]
[1728146199384,10.74,142.4,142.37,3.63672]
[1728146200085,10.74,142.4,142.38,3.5115]
[1728146200292,3.511,142.41,142.38,3.5115]
[1728146200488,10.74,142.4,142.37,0.12502]
[1728146200682,10.74,142.4,142.39,3.5113]
[1728146201893,10.74,142.4,142.38,3.5114]
[1728146203195,19.2306,142.42,142.38,3.5114]
[1728146205292,10.74,142.4,142.38,3.5114]
[1728146205489,10.74,142.4,142.37,3.63662]
[1728146205687,10.74,142.4,142.37,0.12502]
[1728146206393,1.4452,142.44,142.37,0.12502]
[1728146206698,10.74,142.44,142.38,10.74]
[1728146207188,10.74,142.43,142.38,10.74]
[1728146207592,10.74,142.43,142.4,3.5108]
[1728146207789,10.74,142.42,142.37,15.84502]
[1728146208702,10.74,142.42,142.38,3.5114]
[1728146208896,3.5103,142.43,142.37,15.84502]
[1728146209097,10.74,142.42,142.37,15.84502]
[1728146210001,10.74,142.42,142.4,3.5109]
[1728146219299,10.74,142.42,142.37,15.84502]
[1728146219300,10.74,142.43,142.41,3.5106]
[1728146219501,10.74,142.43,142.37,15.84502]
[1728146219702,10.74,142.45,142.39,10.74]
[1728146219906,10.74,142.45,142.43,3.5101]
[1728146220907,10.74,142.45,142.4,6.2596]
[1728146221097,10.74,142.45,142.42,3.5104]
[1728146221696,14.2498,142.45,142.42,3.5104]
[1728146222707,10.74,142.44,142.4,6.2596]
[1728146222906,10.74,142.44,142.43,3.5102]
[1728146224515,10.74,142.44,142.4,6.2596]
[1728146224805,10.74,142.43,142.42,3.5105]
[1728146225611,3.5096,142.46,142.43,3.5101]
[1728146225808,1.44282,142.49,142.43,4.94]
[1728146226004,0.12502,142.49,142.44,10.74]
[1728146226204,10.74,142.48,142.43,4.94]
[1728146226410,10.74,142.47,142.43,4.94]
[1728146226810,10.74,142.47,142.44,3.5099]
[1728146227312,10.74,142.46,142.43,8.4502]
[1728146228307,10.74,142.46,142.44,3.51]
[1728146228707,10.74,142.48,142.43,4.94]
[1728146230115,10.74,142.48,142.45,3.5096]
[1728146230812,14.2491,142.48,142.45,3.5096]
[1728146233316,3.63392,142.49,142.46,3.5094]
[1728146233513,10.86502,142.49,142.43,15.68]
[1728146233817,0.12502,142.49,142.45,10.74]
[1728146234011,0.12502,142.49,142.48,3.509]
[1728146239824,10.86502,142.49,142.46,8.4494]
[1728146240024,10.86502,142.49,142.44,10.74]
[1728146240323,10.74,142.47,142.45,4.94]
[1728146240824,10.74,142.47,142.45,8.4497]
[1728146241431,10.86502,142.49,142.47,3.5091]
[1728146241723,0.12502,142.49,142.46,10.74]
[1728146242927,0.12502,142.49,142.46,12.1667]
[1728146243230,0.12502,142.49,142.48,3.509]
[1728146243431,0.12502,142.49,142.48,8.449]
[1728146244826,10.86502,142.49,142.48,4.94]
[1728146245421,10.86502,142.49,142.42,10.74]
[1728146245422,10.86502,142.49,142.45,4.96]
[1728146245622,10.74,142.47,142.45,8.4696]
[1728146248435,10.74,142.48,142.45,8.4696]
[1728146249032,0.12502,142.49,142.48,3.509]
[1728146256140,0.12502,142.49,142.47,3.5092]
[1728146256339,0.12502,142.49,142.45,15.7]
[1728146256534,10.86502,142.49,142.45,4.96]
[1728146257237,14.37402,142.49,142.46,3.5094]
[1728146257442,10.74,142.47,142.45,4.96]
[1728146258641,10.74,142.47,142.44,4.96]
[1728146260135,14.2494,142.47,142.44,8.47]
[1728146264853,10.74,142.47,142.41,2.7916]
[1728146265042,0.12502,142.49,142.42,8.4704]
[1728146265043,10.74,142.45,142.42,8.4704]
[1728146265536,10.74,142.45,142.42,4.96]
[1728146265847,10.74,142.45,142.41,3.5107]
[1728146266053,10.74,142.45,142.41,8.4707]
[1728146266234,10.74,142.43,142.41,8.4707]
[1728146269947,10.74,142.43,142.41,3.5107]
[1728146272248,110.74,142.43,142.41,3.5107]
[1728146278754,3.5105,142.42,142.4,4.96]
[1728146278951,110.74,142.43,142.4,4.96]
[1728146279140,10.74,142.42,142.4,4.96]
[1728146279346,10.74,142.42,142.39,8.4112]
[1728146279555,10.74,142.41,142.4,1.19089666]
[1728146279850,10.74,142.41,142.38,8.4115]
[1728146280054,10.74,142.41,142.39,1.19090309]
[1728146280548,10.74,142.41,142.38,4.9]
[1728146280751,3.511,142.4,142.37,170.24157]
[1728146280949,10.74,142.39,142.38,1.19103681]
[1728146281144,10.74,142.38,142.37,166.72987]
[1728146282957,14.2515,142.38,142.37,166.72987]
[1728146283952,6.26800995,142.42,142.37,166.72987]
[1728146284145,10.74,142.4,142.37,166.72987]
[1728146284346,10.74,142.4,142.37,170.24147]
[1728146285245,10.74,142.4,142.37,166.72987]
[1728146285459,10.74,142.41,142.38,3.5113]
[1728146286151,100.0,142.43,142.37,177.46987]
[1728146286456,10.74,142.42,142.37,177.46987]
[1728146286952,10.74,142.41,142.39,3.5111]
[1728146288057,10.74,142.4,142.37,166.72987]
[1728146288652,10.74,142.4,142.37,170.24147]
[1728146289664,3.5113,142.39,142.37,166.72987]
[1728146289873,10.74,142.4,142.37,166.72987]
[1728146290053,10.74,142.4,142.37,171.62987]
[1728146290257,14.2513,142.39,142.37,171.62987]
[1728146290559,14.2513,142.39,142.37,166.72987]
[1728146290963,10.74,142.4,142.37,166.72987]
[1728146292055,10.74,142.4,142.38,3.5114]
[1728146292364,10.74,142.4,142.37,166.72987]
[1728146292767,14.251,142.4,142.37,170.24147]
[1728146294065,10.74,142.4,142.38,3.5115]
[1728146295855,10.74,142.4,142.37,166.72987]
[1728146296057,10.74,142.4,142.37,170.24157]
[1728146296764,14.251,142.4,142.37,170.24157]
[1728146305174,3.5113,142.39,142.37,166.72987]
[1728146305469,10.74,142.4,142.37,166.72987]
[1728146305956,10.74,142.38,142.37,166.72987]
[1728146306966,14.2515,142.38,142.37,166.72987]
[1728146311168,10.74,142.38,142.37,166.72987]
[1728146313872,4.88,142.41,142.37,166.72987]
[1728146314076,14.2508,142.41,142.38,3.5115]
[1728146314468,10.74,142.4,142.37,171.60987]
[1728146315070,10.74,142.4,142.38,3.5115]
[1728146315274,3.511,142.41,142.38,3.5115]
[1728146315480,10.74,142.4,142.38,3.5115]
[1728146317073,14.251,142.4,142.37,175.12147]
[1728146317974,100.0,142.43,142.37,171.60987]
[1728146318180,110.74,142.43,142.38,10.74]
[1728146318371,110.74,142.43,142.39,10.74]
[1728146318372,100.0,142.43,142.39,10.74]
[1728146318685,100.0,142.43,142.4,4.88]
[1728146319175,100.0,142.43,142.42,3.5105]
[1728146319376,93.34068001,142.43,142.42,3.5105]
[1728146319676,85.19628001,142.43,142.42,3.5105]
[1728146327282,85.19628001,142.43,142.42,14.2505]
[1728146340396,0.86628001,142.43,142.42,15.44113699]
[1728146341090,0.86628001,142.43,142.42,15.44108025]
[1728146343304,0.86628001,142.43,142.42,15.44109804]
[1728146345099,0.86628001,142.43,142.42,15.44118054]
[1728146346495,0.86628001,142.43,142.42,19.1305]
[1728146347605,0.86628001,142.43,142.42,3.5105]
[1728146348294,0.86628001,142.43,142.42,4.88]
[1728146349505,0.86628001,142.43,142.42,19.1305]
[1728146349802,1.3331,142.48,142.42,15.62]
[1728146349996,1.3331,142.48,142.47,3.5093]
[1728146350303,1.3331,142.48,142.47,8.3893]
[1728146350498,1.3331,142.48,142.47,4.88]